bitfinex/quotes_ETHUSD_20240821
["timestamp","ask_amount","ask_price","bid_price","bid_amount"]
[1724252445494,3.85539,2593.8,2593.3,0.07071766]
[1724252445703,11.4415,2594.0,2592.8,3.85677]
[1724252445704,3.85589,2593.5,2592.8,3.85674]
[1724252445846,6.85558,2593.7,2592.9,0.14820069]
[1724252446215,3.0,2593.7,2593.2,3.85622]
[1724252446494,3.0,2593.7,2592.6,5.28451626]
[1724252446495,11.4415,2594.0,2593.4,3.8559]
[1724252446849,11.4415,2594.0,2593.5,3.92630565]
[1724252446850,6.0,2594.0,2593.5,3.92630565]
[1724252447204,3.85523,2593.9,2593.5,0.07053565]
[1724252447487,3.85523,2593.9,2593.1,3.8563]
[1724252447488,0.985523,2593.8,2593.2,3.85615]
[1724252447656,7.71061,2593.9,2593.3,0.07071766]
[1724252447842,6.0,2594.0,2593.3,0.07071766]
[1724252447843,9.0232,2593.7,2593.3,0.07071766]
[1724252448042,3.85537,2593.8,2593.2,3.85621]
[1724252448278,3.85552,2593.7,2593.3,0.07071766]
[1724252448483,3.85537,2593.8,2593.1,3.85627]
[1724252448680,3.85537,2593.8,2593.2,0.07080867]
[1724252448863,19.55,2593.9,2593.4,3.85593]
[1724252449076,19.55,2593.9,2592.9,1.237315]
[1724252449077,19.55,2593.9,2593.5,0.07053565]
[1724252449293,23.4053,2593.9,2593.3,3.85606]
[1724252449488,19.55,2593.9,2593.5,3.85577]
[1724252449669,19.55,2593.9,2593.6,0.07044466]
[1724252449870,19.55,2593.9,2592.3,1.24890477]
[1724252450070,3.0,2593.8,2592.4,5.0857]
[1724252450250,11.32530721,2594.0,2592.9,3.85666]
[1724252450251,7.71168,2593.5,2592.9,3.85666]
[1724252450449,3.8558,2593.5,2592.9,4.627995]
[1724252450747,3.8558,2593.5,2593.0,0.07099072]
[1724252450949,3.85637,2593.2,2593.0,0.07099072]
[1724252451366,3.85576,2593.6,2593.0,3.85643]
[1724252451564,9.37734,2593.7,2593.2,3.85623]
[1724252451902,5.5218,2593.7,2593.2,3.85623]
[1724252452106,5.5218,2593.7,2593.3,3.85607]
[1724252452406,3.85541,2593.8,2593.3,3.85607]
[1724252452611,3.0,2593.9,2593.4,3.85584]
[1724252452816,3.0,2593.9,2593.5,3.8557]
[1724252453284,3.0,2593.9,2593.6,0.07044466]
[1724252453651,6.0,2594.0,2593.6,4.31866913]
[1724252454390,6.0,2594.0,2593.8,3.85534]
[1724252454552,6.0,2594.0,2593.9,3.85519]
[1724252454758,6.0,2594.0,2593.9,8.33055172]
[1724252455531,6.0,2594.0,2593.9,4.47536172]
[1724252455736,6.0,2594.0,2593.9,0.90324289]
[1724252455904,6.0,2594.0,2593.9,0.07017172]
[1724252456107,6.0,2594.0,2593.9,3.92536172]
[1724252456305,6.0,2594.0,2593.9,8.33055172]
[1724252456541,6.0,2594.0,2593.9,12.18574172]
[1724252456835,6.0,2594.0,2593.9,17.39564172]
[1724252456986,6.0,2594.0,2593.9,19.52075189]
[1724252459297,6.0,2594.0,2593.9,15.66556189]
[1724252460006,6.0,2594.0,2593.9,19.52075189]
[1724252461044,6.0,2594.0,2593.9,23.58175189]
[1724252461191,6.0,2594.0,2593.9,15.66556189]
[1724252461392,6.0,2594.0,2593.9,10.45566189]
[1724252461778,6.0,2594.0,2593.9,6.60047189]
[1724252461956,6.0,2594.0,2593.9,0.07017172]
[1724252462458,6.0,2594.0,2593.8,3.85529]
[1724252462593,6.0,2594.0,2593.9,0.07002166]
[1724252462989,9.85505,2594.0,2593.2,0.771266]
[1724252463238,22.45454,2594.0,2593.9,0.07002702]
[1724252463462,3.85551,2593.7,2592.4,5.1841]
[1724252463596,3.85551,2593.7,2593.1,3.85629]
[1724252463796,6.0,2594.0,2593.9,3.85519]
[1724252464096,6.0,2594.0,2593.9,8.095899]
[1724252464329,6.0,2594.0,2593.9,0.45574431]
[1724252464538,6.0,2594.0,2593.0,5.21221173]
[1724252464539,6.0,2594.0,2593.5,3.8557]
[1724252464839,6.0,2594.0,2593.7,3.85547]
[1724252465037,6.0,2594.0,2593.6,0.07049824]
[1724252465245,5.3215,2593.9,2593.8,0.07031628]
[1724252465401,5.3215,2593.9,2593.7,0.07040726]
[1724252465595,3.85562,2593.7,2592.9,3.85666]
[1724252465795,3.85572,2593.6,2592.9,3.85666]
[1724252466059,8.85901,2593.5,2592.9,3.85666]
[1724252466194,3.856,2593.4,2593.0,0.07104431]
[1724252466396,3.856,2593.4,2592.7,3.85692]
[1724252466641,3.856,2593.4,2592.8,0.385692]
[1724252466855,5.5124,2593.9,2593.4,3.85583]
[1724252467168,5.5124,2593.9,2592.8,0.93861142]
[1724252467169,9.36772,2593.9,2593.2,3.85622]
[1724252467463,15.14527,2593.9,2593.5,0.07058924]
[1724252467613,11.28995,2593.9,2593.5,0.07058924]
[1724252467808,11.28995,2593.9,2593.3,3.85608]
[1724252468091,5.5124,2593.9,2593.3,3.85608]
[1724252468244,5.5124,2593.9,2593.6,3.85562]
[1724252468456,6.0,2594.0,2593.9,3.85519]
[1724252468766,6.0,2594.0,2593.5,3.85569]
[1724252468927,3.85521,2593.9,2593.3,3.85601]
[1724252469128,3.85521,2593.9,2593.4,0.0709376]
[1724252469129,5.4879,2593.9,2593.4,0.0709376]
[1724252469333,9.34319,2593.9,2593.4,0.0709376]
[1724252469533,9.34317,2593.9,2593.4,0.0709376]
[1724252469725,5.449747,2593.8,2593.4,0.0709376]
[1724252469932,1.594317,2593.8,2593.3,3.85606]
[1724252470212,5.4879,2593.9,2593.3,3.85606]
[1724252470558,9.3431,2593.9,2593.4,0.0709376]
[1724252470773,5.4879,2593.9,2593.4,0.0709376]
[1724252470982,6.0,2594.0,2593.6,3.85553]
[1724252471271,6.0,2594.0,2593.8,3.85525]
[1724252471463,6.0,2594.0,2593.9,0.771061]
[1724252471683,6.0,2594.0,2593.9,0.07048267]
[1724252471972,6.0,2594.0,2593.7,3.85536]
[1724252472268,6.0,2594.0,2593.9,0.07048267]
[1724252472626,6.0,2594.0,2593.7,3.85536]
[1724252472822,6.0,2594.0,2593.8,0.07057365]
[1724252473077,6.0,2594.0,2593.5,3.85569]
[1724252473290,3.85527,2593.9,2593.6,0.07075561]
[1724252473565,3.85527,2593.9,2593.3,3.85596]
[1724252473775,3.85527,2593.9,2593.4,3.85593]
[1724252473937,3.85527,2593.9,2593.4,0.0709376]
[1724252474322,6.0,2594.0,2593.4,3.9267376]
[1724252474527,9.85506,2594.0,2593.4,3.9267376]
[1724252474960,6.0,2594.0,2593.4,3.9267376]
[1724252475169,6.0,2594.0,2593.4,3.9267776]
[1724252475170,5.1594,2593.8,2593.4,3.9267776]
[1724252475334,5.1594,2593.8,2593.4,3.9268576]
[1724252475532,5.1594,2593.8,2593.4,4.70515236]
[1724252475950,5.1594,2593.8,2593.4,0.0709376]
[1724252476672,7.71158,2593.5,2593.4,0.0709376]
[1724252476825,7.71158,2593.5,2592.7,3.85687]
[1724252476826,3.85621,2593.3,2592.7,3.85687]
[1724252477128,3.85624,2593.2,2592.8,0.07181079]
[1724252477328,5.3204,2593.1,2592.3,3.85747]
[1724252477570,3.8567,2592.9,2592.4,0.07227692]
[1724252477979,3.8567,2592.9,2592.4,3.92968692]
[1724252478195,3.85665,2593.0,2592.4,3.85741]
[1724252478338,7.71333,2593.0,2592.5,0.07227168]
[1724252478675,7.71333,2593.0,2592.4,3.85741]
[1724252478676,3.85668,2592.9,2592.3,3.85746]
[1724252478876,3.85668,2592.9,2592.4,0.07236275]
[1724252479076,3.85668,2592.9,2592.4,3.92976275]
[1724252479593,3.85655,2593.0,2592.5,3.85726]
[1724252479791,3.85655,2593.0,2592.5,3.8572]
[1724252479943,5.3204,2593.1,2592.7,3.85697]
[1724252480141,28.48933,2593.3,2592.8,0.07199852]
[1724252480346,6.85625,2593.2,2592.7,3.85689]
[1724252480576,3.85656,2593.0,2592.3,4.243177]
[1724252480759,23.40653,2593.0,2592.8,0.07199852]
[1724252480978,23.40653,2593.0,2592.1,7.71554]
[1724252480979,3.857,2592.7,2592.1,7.71554]
[1724252481180,3.857,2592.7,2592.1,3.85777]
[1724252481379,3.857,2592.7,2592.2,0.07254492]
[1724252481883,5.3379,2592.6,2592.2,0.07254492]
[1724252482084,3.85736,2592.5,2592.0,3.85797]
[1724252482292,5.3379,2592.6,2592.1,3.93046601]
[1724252482802,9.19503,2592.6,2592.1,3.93046601]
[1724252483207,5.3379,2592.6,2592.1,0.07263601]
[1724252483358,3.85772,2592.2,2592.1,0.07263601]
[1724252483557,3.85824,2591.9,2591.3,3.85899]
[1724252483899,5.3411,2592.0,2590.9,3.85963]
[1724252484076,5.3411,2592.0,2591.0,3.8595]
[1724252484263,3.85869,2591.6,2591.1,3.85934]
[1724252484463,3.85869,2591.6,2591.0,0.771913]
[1724252484661,5.4838,2591.4,2590.9,3.85952]
[1724252486465,5.4838,2591.4,2591.0,3.85942]
[1724252486983,9.34278,2591.4,2590.7,3.85987]
[1724252487159,5.4838,2591.4,2590.8,3.85981]
[1724252487514,3.919901,2591.9,2590.8,0.385981]
[1724252487515,7.778111,2591.9,2590.8,0.385981]
[1724252487809,6.0,2592.0,2591.4,3.85879]
[1724252488180,6.0,2592.0,2591.0,3.85944]
[1724252488383,6.0,2592.0,2591.8,3.85823]
[1724252488584,6.0,2592.0,2591.6,3.85853]
[1724252488585,6.0,2592.0,2591.6,3.8585]
[1724252488966,6.0,2592.0,2591.4,3.85886]
[1724252489177,3.85841,2591.8,2591.1,4.40923]
[1724252489516,2.14077,2591.0,2590.9,3.85959]
[1724252489713,2.14077,2591.0,2590.9,7.71925]
[1724252490081,2.14077,2591.0,2590.9,11.57891]
[1724252490414,1.33554754,2591.0,2590.9,19.78851]
[1724252490716,1.33554754,2591.0,2590.9,21.767361]
[1724252491010,1.33554754,2591.0,2590.9,22.317361]
[1724252492007,1.33554754,2591.0,2590.9,9.698101]
[1724252492157,1.33554754,2591.0,2590.9,7.71925]
[1724252492620,7.54e-06,2591.0,2590.9,19.64661]
[1724252493771,7.54e-06,2591.0,2590.9,20.19661]
[1724252494669,7.54e-06,2591.0,2590.9,10.79051583]
[1724252495027,7.54e-06,2591.0,2590.9,3.93085583]
[1724252495161,7.54e-06,2591.0,2590.9,7.79051583]
[1724252496113,7.54e-06,2591.0,2590.9,3.93085583]
[1724252496326,7.54e-06,2591.0,2590.9,0.07126583]
[1724252496462,7.54e-06,2591.0,2590.7,3.85984]
[1724252496824,7.54e-06,2591.0,2590.8,0.07135701]
[1724252497111,7.54e-06,2591.0,2590.7,3.85995]
[1724252497322,7.54e-06,2591.0,2590.9,3.85966]
[1724252497467,7.54e-06,2591.0,2590.9,3.93092583]
[1724252497662,7.54e-06,2591.0,2590.9,0.07126583]
[1724252497994,7.54e-06,2591.0,2590.5,3.86015]
[1724252498197,7.54e-06,2591.0,2590.9,0.07126583]
[1724252498198,9.26582754,2591.0,2590.9,0.07126583]
[1724252498402,12.53333329,2591.0,2590.4,3.86036]
[1724252498605,5.40630754,2591.0,2590.5,3.86022]
[1724252498812,5.40630754,2591.0,2590.5,3.9318506]
[1724252499166,28.81581754,2591.0,2590.5,0.0716306]
[1724252499573,28.81581754,2591.0,2590.4,3.86037]
[1724252499894,5.4278,2590.3,2589.3,8.96733]
[1724252500101,9.28836,2590.3,2589.7,3.86133]
[1724252500299,5.4278,2590.3,2589.8,3.93352923]
[1724252500504,5.4278,2590.3,2589.9,4.25441292]
[1724252500735,5.4278,2590.3,2590.0,0.07291951]
[1724252501921,7.33,2590.6,2590.3,3.86051]
[1724252502090,7.33,2590.6,2590.4,3.86037]
[1724252502286,5.0337,2590.7,2590.5,3.93376262]
[1724252502483,5.0337,2590.7,2590.5,0.07360262]
[1724252502724,5.0337,2590.7,2590.3,3.86054]
[1724252502865,5.0337,2590.7,2590.4,0.07369383]
[1724252503389,3.85964754,2591.0,2590.4,0.07369383]
[1724252503390,5.4156,2591.0,2590.7,3.85983246]
[1724252503975,5.4156,2591.0,2590.8,0.07332903]
[1724252504373,9.27512,2591.0,2590.3,7.72095]
[1724252504579,5.4156,2591.0,2590.3,0.772095]
[1724252504771,5.4156,2591.0,2590.5,3.86015]
[1724252504971,5.41463513,2591.0,2590.5,3.86015]
[1724252505288,5.41463513,2591.0,2590.6,0.07351141]
[1724252505909,19.55,2591.2,2590.6,0.07351141]
[1724252506226,26.88,2591.5,2591.0,3.85941]
[1724252506377,19.55,2591.6,2591.0,3.85941]
[1724252506575,19.55,2591.6,2591.1,3.93204757]
[1724252506831,3.85897,2591.4,2591.1,0.07272757]
[1724252507326,23.4087,2591.6,2591.0,3.85936]
[1724252507520,19.55,2591.6,2591.1,3.93206757]
[1724252507689,23.40869,2591.6,2591.1,0.07272757]
[1724252508029,8.89311,2591.2,2591.1,0.07272757]
[1724252508292,5.0339,2591.2,2591.1,0.07272757]
[1724252508448,5.0339,2591.2,2590.9,3.85965]
[1724252508746,24.5839,2591.6,2591.2,3.85909]
[1724252508914,24.5839,2591.6,2591.3,3.93141777]
[1724252509113,24.5839,2591.6,2591.3,0.07243777]
[1724252509333,24.5839,2591.6,2591.0,3.85945]
[1724252509508,28.44261,2591.6,2591.1,0.07262009]
[1724252509711,24.5839,2591.6,2591.1,0.07262009]
[1724252509943,24.5839,2591.6,2591.1,3.93196009]
[1724252509944,28.161137,2591.6,2591.1,3.93196009]
[1724252510249,24.5839,2591.6,2591.2,3.85918]
[1724252510401,26.88,2591.8,2591.5,3.85864]
[1724252511152,26.88,2591.8,2591.6,0.07206226]
[1724252511153,3.85847,2591.7,2591.6,0.07206226]
[1724252511308,19.55,2591.7,2591.1,3.85928]
[1724252511497,19.55,2591.7,2591.3,3.85898]
[1724252511702,19.55,2591.7,2591.4,0.07224453]
[1724252513067,23.40857,2591.7,2591.1,3.85934]
[1724252513435,23.40857,2591.7,2591.2,0.07242683]
[1724252513933,23.40857,2591.7,2591.4,3.85884]
[1724252513934,19.55,2591.7,2591.4,3.85884]
[1724252514132,19.55,2591.7,2591.5,0.07215339]
[1724252514337,19.55,2591.7,2591.5,3.93083339]
[1724252515340,19.55,2592.1,2591.6,3.8585]
[1724252515546,3.85766,2592.3,2591.2,4.63831368]
[1724252515547,19.55,2592.3,2591.8,3.8583]
[1724252515880,5.2417,2592.6,2592.2,3.85768]
[1724252516090,19.51,2592.8,2592.4,3.85732]
[1724252516302,19.55,2593.0,2592.7,3.85697]
[1724252516585,19.55,2593.0,2592.8,0.07030277]
[1724252516994,19.55,2593.0,2592.5,3.85717]
[1724252517141,19.55,2593.0,2592.5,4.242887]
[1724252517498,5.5861,2593.7,2592.6,0.07048488]
[1724252517702,5.5861,2593.7,2593.2,3.85613]
[1724252517840,5.5861,2593.7,2592.7,5.8001]
[1724252517841,5.5861,2593.7,2593.4,3.85582]
[1724252518039,3.8549,2594.1,2593.4,3.85582]
[1724252518040,5.5861,2594.1,2593.6,3.85552]
[1724252518341,5.5861,2594.1,2593.7,0.06860841]
[1724252519050,5.5861,2594.1,2593.8,3.85532]
[1724252519250,5.5861,2594.1,2593.7,0.06860841]
[1724252519435,5.1936,2594.4,2593.9,3.92358646]
[1724252519658,5.68889573,2594.4,2593.9,3.85516]
[1724252519911,9.65214698,2594.8,2593.9,3.85516]
[1724252520212,9.65214698,2594.8,2594.1,3.85487]
[1724252520419,3.85405,2594.7,2593.4,0.440582]
[1724252520629,3.85461,2594.3,2593.0,3.85643]
[1724252520910,9.04808,2594.4,2593.6,3.85552]
[1724252521108,9.04808,2594.4,2593.7,0.06807736]
[1724252521308,9.04808,2594.4,2593.4,3.85583]
[1724252521309,3.85488,2594.2,2593.4,3.85583]
[1724252521515,0.385488,2594.1,2593.5,4.47402934]
[1724252521826,0.385488,2594.1,2593.5,0.61825934]
[1724252521827,4.240398,2594.1,2593.5,0.61825934]
[1724252522117,3.85507,2594.0,2593.5,0.06825934]
[1724252522414,3.85507,2594.0,2593.2,3.85619]
[1724252522596,0.8095338,2594.0,2593.6,0.06816835]
[1724252522764,3.0,2594.3,2593.6,3.85554]
[1724252522968,3.0,2594.3,2593.7,0.06807736]
[1724252523464,7.70972,2594.2,2593.4,3.85582]
[1724252523714,3.85485,2594.2,2593.3,4.40607]
[1724252523873,3.85516,2594.0,2593.4,0.06835034]
[1724252524076,0.685485,2594.1,2593.4,0.06835034]
[1724252524381,3.0,2594.3,2593.6,3.8556]
[1724252524382,6.85471,2594.3,2593.6,3.8556]
[1724252524562,3.85475,2594.2,2593.5,4.40569]
[1724252524759,3.85493,2594.1,2593.6,0.06816835]
[1724252524974,3.0,2594.3,2593.1,7.71259]
[1724252524975,3.85531,2593.9,2593.1,7.71259]
[1724252525267,3.0,2594.3,2592.9,3.85659]
[1724252525268,3.85565,2593.6,2592.9,3.85659]
[1724252525467,0.385565,2593.6,2593.1,3.85626]
[1724252525713,5.3298,2593.8,2593.4,3.85593]
[1724252525878,5.3298,2593.8,2593.2,3.85622]
[1724252526079,23.40352,2595.1,2593.4,3.85584]
[1724252526080,3.85498,2594.1,2593.4,3.85584]
[1724252526800,3.85469,2594.3,2593.6,3.85564]
[1724252526980,3.85445,2594.4,2593.8,3.85532]
[1724252527167,0.936545,2594.4,2593.9,3.85511]
[1724252527363,3.85393,2594.8,2594.1,3.85479]
[1724252527665,5.511,2594.9,2594.3,3.85449]
[1724252527926,3.85388,2594.8,2594.2,3.85466]
[1724252528101,5.511,2594.9,2594.3,3.85459]
[1724252528614,3.85333,2595.2,2594.6,3.85401]
[1724252528795,0.83108132,2595.2,2594.7,3.85396]
[1724252529123,0.83108132,2595.2,2594.7,0.55]
[1724252529278,5.1732,2595.3,2594.8,3.93082974]
[1724252529479,3.85273,2595.6,2594.8,3.85376]
[1724252529713,7.70553,2595.6,2594.9,0.55]
[1724252530013,3.85292,2595.5,2594.9,0.55]
[1724252530164,0.770565,2595.4,2594.9,0.55]
[1724252530508,0.770565,2595.4,2594.9,4.4037]
[1724252530712,3.85273,2595.6,2594.9,4.4037]
[1724252530913,3.85273,2595.6,2594.9,0.55]
[1724252531272,3.85292,2595.5,2594.9,0.55]
[1724252531709,3.85273,2595.6,2594.9,4.40369]
[1724252532117,3.85273,2595.6,2595.0,3.85356]
[1724252532421,3.0,2595.9,2594.9,3.85365]
[1724252532422,3.85291,2595.5,2594.9,3.85365]
[1724252532564,3.85291,2595.5,2594.2,0.52004851]
[1724252532565,3.8535,2595.1,2594.1,5.2717]
[1724252532771,0.38535,2595.0,2594.3,3.85448]
[1724252533118,5.1999,2595.4,2594.2,3.0]
[1724252533269,9.05292,2595.4,2594.7,3.85391]
[1724252533478,3.0,2595.6,2594.6,3.85402]
[1724252533677,3.85291,2595.5,2594.7,3.85395]
[1724252533985,3.85291,2595.5,2594.8,0.55]
[1724252534206,0.385291,2595.4,2594.8,0.55]
[1724252534368,3.85317,2595.3,2594.8,0.55]
[1724252534567,0.385291,2595.4,2594.8,4.40383]
[1724252534804,4.238371,2595.4,2594.8,0.55]
[1724252535191,0.385291,2595.4,2594.8,4.40375]
[1724252535469,0.385291,2595.4,2594.9,3.85369]
[1724252535922,3.85291,2595.5,2594.9,3.85369]
[1724252536075,5.1999,2595.8,2595.0,0.55]
[1724252536399,5.1999,2595.8,2595.3,3.85308]
[1724252536926,3.85287,2595.5,2594.9,3.85363]
[1724252537131,5.05785,2595.7,2595.0,4.40345]
[1724252537427,3.85269,2595.6,2595.0,0.55]
[1724252537569,5.05783,2595.7,2595.1,3.8534]
[1724252537769,5.05783,2595.7,2595.2,3.85322]
[1724252537770,1.20522,2595.7,2595.2,3.85322]
[1724252538021,19.55,2595.7,2595.3,3.85308]
[1724252539042,19.55,2595.7,2594.9,3.85362]
[1724252539196,19.55,2595.7,2594.5,8.4327]
[1724252539197,3.85289,2595.5,2594.8,3.85385]
[1724252539385,3.85299,2595.4,2594.9,0.55]
[1724252539586,5.170208,2595.4,2594.9,0.55]
[1724252539783,5.170208,2595.4,2595.0,0.06169259]
[1724252540347,3.85326,2595.2,2595.0,0.06169259]
[1724252540643,1.317218,2595.4,2594.8,3.85375]
[1724252540782,1.317218,2595.4,2595.1,0.06160171]
[1724252540982,5.170208,2595.4,2594.8,3.85375]
[1724252541188,0.5170208,2595.3,2594.9,0.06178349]
[1724252541688,13.14973,2595.2,2594.5,3.85425]
[1724252541892,3.85343,2595.1,2594.6,0.06205621]
[1724252542099,9.29632,2595.2,2594.4,3.85435]
[1724252542100,3.85356,2595.0,2594.4,3.85435]
[1724252542299,4.783216,2595.0,2594.5,0.06214714]
[1724252542532,0.929656,2595.0,2594.6,3.85403]
[1724252542732,3.85315,2595.3,2594.7,0.0619653]
[1724252542938,7.70634,2595.3,2594.5,3.85422]
[1724252543142,27.9473,2595.6,2594.6,0.61205621]
[1724252543373,27.9473,2595.6,2594.6,0.06205621]
[1724252543374,7.70698,2595.1,2594.6,0.06205621]
[1724252543501,3.85349,2595.1,2594.6,0.06205621]
[1724252544216,7.707,2595.1,2594.6,0.06205621]
[1724252544555,3.85382,2594.9,2594.6,0.06205621]
[1724252544705,4.624524,2594.9,2594.3,3.85452]
[1724252544909,4.624524,2594.9,2594.4,0.61223807]
[1724252545215,4.624524,2594.9,2594.4,4.46666807]
[1724252545402,3.85394,2594.8,2594.4,0.06223807]
[1724252546051,9.01386,2595.2,2594.5,3.85429]
[1724252546277,3.85307,2595.4,2594.9,3.85362]
[1724252546547,3.85282,2595.5,2595.0,0.06199743]
[1724252546764,9.40838,2595.6,2595.1,3.85339]
[1724252546903,3.85253,2595.7,2595.2,3.91502566]
[1724252547103,0.770499,2595.7,2595.2,3.91502566]
[1724252547306,0.770499,2595.7,2595.2,0.06181566]
[1724252547639,0.770499,2595.7,2595.2,3.85325]
[1724252547832,5.2352,2595.9,2595.3,0.06172478]
[1724252548154,5.2352,2595.9,2595.1,3.85329]
[1724252548155,3.85279,2595.6,2595.0,3.85348]
[1724252548335,3.85247,2595.8,2595.1,8.31872654]
[1724252548543,3.85246,2595.8,2595.2,3.85319]
[1724252548850,3.85246,2595.8,2595.3,0.06172478]
[1724252549217,3.85246,2595.8,2595.3,3.91481478]
[1724252549684,5.2352,2595.9,2595.4,3.85295]
[1724252550002,3.85175,2596.3,2595.7,3.85245]
[1724252550210,9.08493,2596.5,2595.9,3.85222]
[1724252550211,3.85156,2596.4,2595.9,3.85222]
[1724252550498,3.85156,2596.4,2595.9,3.85219]
[1724252550649,3.85156,2596.4,2596.0,0.06108887]
[1724252551045,7.70197,2596.8,2596.2,3.85171]
[1724252551246,5.5993,2597.0,2596.0,0.06108887]
[1724252551550,3.85176,2596.3,2595.7,4.45522654]
[1724252551784,3.85179,2596.2,2595.8,0.06127052]
[1724252551984,3.85179,2596.2,2595.7,3.85249]
[1724252552203,3.85179,2596.2,2595.8,0.06127052]
[1724252552378,9.45088,2596.4,2595.8,0.06127052]
[1724252552379,5.5993,2596.4,2595.8,0.06127052]
[1724252552590,3.85222,2595.9,2595.3,3.85299]
[1724252552781,3.85222,2595.9,2595.1,3.85331]
[1724252552782,3.8518,2596.2,2595.4,0.06163392]
[1724252552979,3.0,2596.3,2594.9,9.33981]
[1724252552980,3.85267,2595.6,2594.9,9.33981]
[1724252553154,3.85267,2595.6,2595.0,4.5181571]
[1724252553394,5.18,2595.8,2595.0,4.5181571]
[1724252553395,9.03248,2595.8,2595.0,0.06171409]
[1724252553550,7.7041,2596.1,2595.1,0.60296197]
[1724252553744,7.7041,2596.1,2595.0,0.6165055]
[1724252553745,5.4458,2596.2,2595.5,3.85271]
[1724252554067,3.8523,2595.9,2595.6,0.05920532]
[1724252554265,3.85203,2596.1,2595.6,0.05920532]
[1724252554601,5.166986,2596.1,2595.7,0.05911447]
[1724252554783,9.018996,2596.1,2595.7,0.05911447]
[1724252554942,5.166966,2596.1,2595.5,3.85281]
[1724252555147,5.166966,2596.1,2595.6,4.5147286]
[1724252555345,5.166966,2596.1,2595.6,0.05920532]
[1724252555593,5.166966,2596.1,2595.6,3.91185532]
[1724252556193,5.4458,2596.2,2595.6,3.91179532]
[1724252556378,5.4458,2596.2,2595.7,1.15287796]
[1724252556589,9.29767,2596.2,2595.8,0.05902364]
[1724252556766,9.29767,2596.2,2595.7,0.55]
[1724252556968,3.85193,2596.1,2595.8,0.05902364]
[1724252557177,5.166875,2596.1,2595.4,3.85287]
[1724252557381,3.85208,2596.0,2595.5,0.66221182]
[1724252557711,5.166875,2596.1,2595.6,0.60291565]
[1724252557918,5.166875,2596.1,2595.6,3.85264]
[1724252558221,13.22975,2596.5,2595.9,3.85212]
[1724252558365,9.37828,2596.5,2596.0,0.60286961]
[1724252558559,7.33,2596.7,2596.2,3.85175]
[1724252558560,3.85111,2596.7,2596.2,3.85175]
[1724252558822,3.85111,2596.7,2596.3,0.05808295]
[1724252559128,23.40082,2596.9,2596.3,3.90963295]
[1724252559409,23.40082,2596.9,2596.4,1.21070823]
[1724252559613,3.85099,2596.8,2596.4,0.05799215]
[1724252559828,19.55,2596.9,2596.4,0.05799215]
[1724252560118,0.1246198,2597.1,2596.6,3.85118]
[1724252560261,0.1246198,2597.1,2596.7,0.440118]
[1724252560470,0.1246198,2597.1,2596.7,0.4978378]
[1724252560666,0.1246198,2597.1,2596.7,4.3488678]
[1724252561216,0.1246198,2597.1,2596.7,0.4978378]
[1724252561363,0.1246198,2597.1,2596.7,0.0577198]
[1724252561569,0.1246198,2597.1,2596.5,0.55]
[1724252561570,3.85062,2597.0,2596.5,0.55]
[1724252561767,3.85062,2597.0,2596.6,0.05781058]
[1724252561987,7.70135,2597.0,2596.3,7.70305]
[1724252562196,0.1246198,2597.1,2596.5,3.85132]
[1724252562391,0.1246198,2597.1,2596.7,3.85093]
[1724252562606,0.1246198,2597.1,2596.8,0.60762903]
[1724252562926,0.1246198,2597.1,2596.8,0.05762903]
[1724252562927,3.85074,2596.9,2596.8,0.05762903]
[1724252563221,3.9751498,2597.1,2596.6,3.85118]
[1724252563222,0.1246198,2597.1,2596.6,3.85118]
[1724252563447,0.1246198,2597.1,2596.7,4.786068]
[1724252563719,0.1246198,2597.1,2596.7,4.8437878]
[1724252563919,0.1246198,2597.1,2596.7,0.9928378]
[1724252564225,0.1246198,2597.1,2596.8,3.92778795]
[1724252564435,0.1246198,2597.1,2596.9,4.40065]
[1724252564737,0.1246198,2597.1,2597.0,0.83284379]
[1724252565227,0.1246198,2597.1,2597.0,4.74088131]
[1724252565388,0.1246198,2597.1,2597.0,5.29088131]
[1724252565729,0.1246198,2597.1,2597.0,0.05744752]
[1724252566060,3.85068,2597.0,2596.5,9.23513]
[1724252566178,0.1246198,2597.1,2597.0,0.05744752]
[1724252566522,3.9750698,2597.1,2596.5,3.85133]
[1724252566730,16.7862298,2597.1,2597.0,0.05744752]
[1724252566878,3.85121,2596.6,2596.1,3.85193]
[1724252567075,3.85112,2596.7,2596.1,3.85193]
[1724252567310,3.85112,2596.7,2596.2,0.05817375]
[1724252567528,6.91324278,2597.1,2596.2,0.05817375]
[1724252567729,3.85163,2596.3,2596.2,0.05817375]
[1724252567876,3.85198,2596.1,2595.4,5.5216]
[1724252568081,3.85172,2596.3,2595.6,3.85254]
[1724252568295,3.85172,2596.3,2595.7,3.85244]
[1724252568521,7.70343,2596.3,2595.7,3.91046411]
[1724252568782,3.85218,2596.0,2595.7,0.05802411]
[1724252568994,3.85218,2596.0,2595.4,3.85292]
[1724252569176,3.85218,2596.0,2595.5,0.05820581]
[1724252569544,6.85182,2596.2,2595.5,3.91100581]
[1724252569742,10.70374,2596.2,2595.5,7.76371581]
[1724252569943,3.85195,2596.1,2595.6,0.77637158]
[1724252570183,6.85182,2596.2,2595.7,0.05802411]
[1724252570551,3.8521,2596.0,2595.7,0.05802411]
[1724252570751,5.2726,2595.9,2595.7,0.05802411]
[1724252570983,5.2726,2595.9,2595.2,3.85325]
[1724252570984,3.85237,2595.8,2595.2,3.85325]
[1724252571293,3.85253,2595.7,2595.3,0.82905153]
[1724252571489,7.70517,2595.7,2595.3,0.05838753]
[1724252571715,3.85253,2595.7,2595.3,0.05838753]
[1724252571990,3.85253,2595.7,2595.4,0.05829667]
[1724252572160,5.2726,2595.9,2595.1,3.85341]
[1724252572352,5.2726,2595.9,2595.2,0.05847841]